[Event "Open"]
[Site "Tallinn, EE"]
[Date "2024.12.15"]
[Round "2.2"]
[White "Obolonin, Filipp"]
[Black "Timoshin, Andrei"]
[Result "1-0"]
[Board "3"]
[TimeControl "40/5400+30"]
[WhiteFideId "4505549"]
[BlackFideId "4503503"]
[WhiteElo "2009"]
[BlackElo "2207"]
[WhiteTeam "EST"]
[BlackTeam "EST"]
[WhiteClock "1:00:02"]
[BlackClock "0:01:27"]
[Variant "Standard"]

1. d4 {[%clk 1:30:54]}  Nf6 {[%clk 1:31:09]} 2. Nf3 {[%clk 1:31:19]}  b6 {[%clk 1:31:28]} 3. g3 {[%clk 1:31:44]}  Bb7 {[%clk 1:31:53]} 4. Bg2 {[%clk 1:32:10]}  c5 {[%clk 1:32:17]} 5. O-O {[%clk 1:32:29]}  cxd4 {[%clk 1:32:00]} 6. Qxd4 {[%clk 1:32:44]}  g6 {[%clk 1:30:51]} 7. c4 {[%clk 1:32:15]}  Bg7 {[%clk 1:31:09]} 8. Nc3 {[%clk 1:32:40]}  O-O {[%clk 1:31:27]} 9. Qd3 {[%clk 1:33:04]}  Na6 {[%clk 1:29:50]} 10. Bg5 {[%clk 1:28:49]}  h6 {[%clk 1:28:59]} 11. Bxf6 {[%clk 1:28:46]}  Bxf6 {[%clk 1:29:17]} 12. Rad1 {[%clk 1:28:31]}  d6 {[%clk 1:28:56]} 13. b3 {[%clk 1:28:39]}  Nc5 {[%clk 1:26:58]} 14. Qd2 {[%clk 1:29:00]}  h5 {[%clk 1:24:51]} 15. h4 {[%clk 1:29:21]}  Qd7 {[%clk 1:16:52]} 16. Ng5 {[%clk 1:28:23]}  Bxg2 {[%clk 1:14:40]} 17. Kxg2 {[%clk 1:28:48]}  Qb7+ {[%clk 1:14:12]} 18. Kg1 {[%clk 1:29:12]}  Bg7 {[%clk 1:10:20]} 19. Qc2 {[%clk 1:23:54]}  Rfd8 {[%clk 0:53:57]} 20. Nce4 {[%clk 1:21:50]}  a6 {[%clk 0:51:45]} 21. Rd5 {[%clk 1:18:19]}  Nxe4 {[%clk 0:47:32]} 22. Qxe4 {[%clk 1:15:47]}  Qd7 {[%clk 0:30:36]} 23. Rfd1 {[%clk 1:15:20]}  Rac8 {[%clk 0:28:34]} 24. Qf4 {[%clk 1:12:46]}  Rf8 {[%clk 0:28:26]} 25. Nf3 {[%clk 1:11:03]}  Qg4 {[%clk 0:18:52]} 26. Qe3 {[%clk 1:10:52]}  Qe6 {[%clk 0:17:57]} 27. Qd3 {[%clk 1:10:07]}  b5 {[%clk 0:14:48]} 28. cxb5 {[%clk 1:00:00]}  Rc3 {[%clk 0:15:14]} 29. Qd2 {[%clk 1:00:08]}  Rfc8 {[%clk 0:15:31]} 30. Ne1 {[%clk 0:55:03]}  Kh7 {[%clk 0:11:44]} 31. e3 {[%clk 0:47:46]}  Bh6 {[%clk 0:11:31]} 32. Rd3 {[%clk 0:46:28]}  R3c7 {[%clk 0:03:46]} 33. bxa6 {[%clk 0:46:25]}  Ra7 {[%clk 0:01:34]} 34. Rc1 {[%clk 0:46:41]}  Rxa6 {[%clk 0:01:09]} 35. Rdc3 {[%clk 0:44:55]}  Rca8 {[%clk 0:01:29]} 36. R1c2 {[%clk 0:45:19]}  Qe4 {[%clk 0:01:15]} 37. Rc8 {[%clk 0:45:13]}  R8a7 {[%clk 0:01:03]} 38. R8c7 {[%clk 0:45:35]}  Ra8 {[%clk 0:00:53]} 39. Rc8 {[%clk 0:45:33]}  Bg7 {[%clk 0:15:36]} 40. Rxa8 {[%clk 1:00:45]}  Qxa8 {[%clk 0:16:01]} 41. Nd3 {[%clk 1:00:43]}  e6 {[%clk 0:15:46]} 42. Nf4 {[%clk 1:00:06]}  d5 {[%clk 0:13:59]} 43. Nh3 {[%clk 0:59:04]}  Be5 {[%clk 0:14:20]} 44. Ng5+ {[%clk 0:59:06]}  Kg7 {[%clk 0:14:49]} 45. Nf3 {[%clk 0:59:17]}  Bf6 {[%clk 0:15:13]} 46. Nd4 {[%clk 0:59:40]}  Qb7 {[%clk 0:07:51]} 47. a4 {[%clk 0:58:42]}  Rd6 {[%clk 0:03:18]} 48. Nb5 {[%clk 0:57:24]}  Rd7 {[%clk 0:03:47]} 49. Qc1 {[%clk 0:57:25]}  Bd8 {[%clk 0:03:25]} 50. Rc6 {[%clk 0:57:07]}  e5 {[%clk 0:03:09]} 51. Qc5 {[%clk 0:56:57]}  Be7 {[%clk 0:02:38]} 52. Qc3 {[%clk 0:56:20]}  Bf6 {[%clk 0:01:41]} 53. Rc7 {[%clk 0:56:16]}  Rxc7 {[%clk 0:01:07]} 54. Qxc7 {[%clk 0:56:40]}  Qa8 {[%clk 0:00:35]} 55. Nd6 {[%clk 0:57:03]}  Qf8 {[%clk 0:00:41]} 56. Qd7 {[%clk 0:57:06]}  Be7 {[%clk 0:00:49]} 57. Ne8+ {[%clk 0:57:12]}  Kg8 {[%clk 0:00:42]} 58. a5 {[%clk 0:57:35]}  d4 {[%clk 0:00:34]} 59. exd4 {[%clk 0:57:18]}  exd4 {[%clk 0:01:00]} 60. a6 {[%clk 0:56:56]}  Bc5 {[%clk 0:01:21]} 61. a7 {[%clk 0:57:06]}  Bxa7 {[%clk 0:01:09]} 62. Qxa7 {[%clk 0:57:24]}  Qxe8 {[%clk 0:01:37]} 63. Qxd4 {[%clk 0:57:44]}  Qe2 {[%clk 0:00:53]} 64. b4 {[%clk 0:58:03]}  Kh7 {[%clk 0:00:56]} 65. Qc5 {[%clk 0:58:20]}  Qe1+ {[%clk 0:00:46]} 66. Kh2 {[%clk 0:58:42]}  Qd2 {[%clk 0:00:51]} 67. b5 {[%clk 0:59:02]}  Qe2 {[%clk 0:00:55]} 68. b6 {[%clk 0:59:08]}  Qb2 {[%clk 0:01:23]} 69. Kg2 {[%clk 0:59:21]}  Qe2 {[%clk 0:01:14]} 70. Qc6 {[%clk 0:59:43]}  g5 {[%clk 0:01:27]} 71. Qf3 {[%clk 1:00:02]} 1-0

[Event "Open"]
[Site "Tallinn, EE"]
[Date "2024.12.14"]
[Round "2.1"]
[White "Kanep, Meelis"]
[Black "Krivenko, Dion"]
[Result "1-0"]
[Board "4"]
[TimeControl "40/5400+30"]
[WhiteFideId "4501047"]
[BlackFideId "4508378"]
[WhiteTitle "GM"]
[BlackTitle "FM"]
[WhiteElo "2377"]
[BlackElo "2269"]
[WhiteTeam "EST"]
[BlackTeam "EST"]
[WhiteClock "0:08:51"]
[BlackClock "0:04:00"]
[Variant "Standard"]

1. d4 {[%clk 1:28:16]}  Nf6 {[%clk 1:30:54]} 2. c4 {[%clk 1:28:37]}  g6 {[%clk 1:31:18]} 3. Nc3 {[%clk 1:28:09]}  Bg7 {[%clk 1:31:41]} 4. e4 {[%clk 1:27:44]}  d6 {[%clk 1:31:57]} 5. Be2 {[%clk 1:24:58]}  O-O {[%clk 1:31:29]} 6. Be3 {[%clk 1:25:16]}  c5 {[%clk 1:29:44]} 7. d5 {[%clk 1:21:03]}  b5 {[%clk 1:26:36]} 8. cxb5 {[%clk 1:20:28]}  Qa5 {[%clk 1:25:53]} 9. Bd2 {[%clk 1:20:32]}  a6 {[%clk 1:24:41]} 10. a4 {[%clk 1:12:35]}  axb5 {[%clk 1:21:24]} 11. Bxb5 {[%clk 1:10:40]}  Ba6 {[%clk 1:18:49]} 12. Nge2 {[%clk 1:04:07]}  Bxb5 {[%clk 1:12:49]} 13. Nxb5 {[%clk 1:02:08]}  Qb6 {[%clk 1:13:00]} 14. Nec3 {[%clk 1:00:28]}  Na6 {[%clk 1:08:12]} 15. O-O {[%clk 1:00:10]}  Ne8 {[%clk 0:52:57]} 16. Bg5 {[%clk 0:44:02]}  Qb7 {[%clk 0:48:56]} 17. Qd2 {[%clk 0:42:06]}  c4 {[%clk 0:46:28]} 18. Qe2 {[%clk 0:33:00]}  Rc8 {[%clk 0:41:24]} 19. Be3 {[%clk 0:33:11]}  Nf6 {[%clk 0:34:43]} 20. Na7 {[%clk 0:23:48]}  Ra8 {[%clk 0:32:39]} 21. Nc6 {[%clk 0:23:19]}  Nb4 {[%clk 0:32:56]} 22. Qxc4 {[%clk 0:20:46]}  Nc2 {[%clk 0:33:10]} 23. Rab1 {[%clk 0:20:05]}  Nxe3 {[%clk 0:33:29]} 24. fxe3 {[%clk 0:20:33]}  Ng4 {[%clk 0:33:11]} 25. Rfe1 {[%clk 0:19:23]}  Ne5 {[%clk 0:29:58]} 26. Qb5 {[%clk 0:17:28]}  Qc7 {[%clk 0:29:30]} 27. Rbc1 {[%clk 0:13:13]}  Nxc6 {[%clk 0:27:16]} 28. dxc6 {[%clk 0:12:02]}  Bxc3 {[%clk 0:26:39]} 29. Rxc3 {[%clk 0:11:15]}  Rfb8 {[%clk 0:26:42]} 30. Qe2 {[%clk 0:08:23]}  Rxa4 {[%clk 0:25:03]} 31. Qc2 {[%clk 0:08:47]}  Rbb4 {[%clk 0:17:06]} 32. b3 {[%clk 0:08:04]}  Ra5 {[%clk 0:17:22]} 33. Rd1 {[%clk 0:07:13]}  e6 {[%clk 0:13:09]} 34. Qd3 {[%clk 0:02:28]}  d5 {[%clk 0:10:07]} 35. exd5 {[%clk 0:02:55]}  exd5 {[%clk 0:10:36]} 36. Qd2 {[%clk 0:00:58]}  Rb6 {[%clk 0:08:14]} 37. Rdc1 {[%clk 0:01:07]}  Rba6 {[%clk 0:06:22]} 38. Qd4 {[%clk 0:01:09]}  Rb5 {[%clk 0:05:06]} 39. h3 {[%clk 0:00:38]}  Ra2 {[%clk 0:03:49]} 40. Qf4 {[%clk 0:15:46]}  Qxf4 {[%clk 0:17:23]} 41. exf4 {[%clk 0:12:26]}  Rb8 {[%clk 0:01:58]} 42. Rc5 {[%clk 0:11:10]}  Rd2 {[%clk 0:01:55]} 43. c7 {[%clk 0:11:02]}  Rc8 {[%clk 0:02:21]} 44. Rb5 {[%clk 0:10:58]}  Re2 {[%clk 0:02:21]} 45. Rb8 {[%clk 0:11:13]}  Ree8 {[%clk 0:02:46]} 46. Rxc8 {[%clk 0:11:37]}  Rxc8 {[%clk 0:03:13]} 47. b4 {[%clk 0:10:37]}  Kf8 {[%clk 0:03:36]} 48. Kf2 {[%clk 0:09:18]}  Ke7 {[%clk 0:04:00]} 49. Ke3 {[%clk 0:08:51]} 1-0

[Event "Open"]
[Site "Tallinn, EE"]
[Date "2024.12.15"]
[Round "2.2"]
[White "Krivenko, Dion"]
[Black "Kanep, Meelis"]
[Result "0-1"]
[Board "4"]
[TimeControl "40/5400+30"]
[WhiteFideId "4508378"]
[BlackFideId "4501047"]
[WhiteTitle "FM"]
[BlackTitle "GM"]
[WhiteElo "2269"]
[BlackElo "2377"]
[WhiteTeam "EST"]
[BlackTeam "EST"]
[WhiteClock "0:02:01"]
[BlackClock "0:05:51"]
[Variant "Standard"]

1. e4 {[%clk 1:30:58]}  c5 {[%clk 1:29:35]} 2. Nf3 {[%clk 1:31:24]}  d6 {[%clk 1:29:34]} 3. d4 {[%clk 1:31:49]}  cxd4 {[%clk 1:29:56]} 4. Qxd4 {[%clk 1:32:15]}  Nc6 {[%clk 1:30:02]} 5. Bb5 {[%clk 1:32:07]}  a6 {[%clk 1:29:40]} 6. Bxc6+ {[%clk 1:32:30]}  bxc6 {[%clk 1:30:04]} 7. c4 {[%clk 1:32:35]}  e5 {[%clk 1:29:56]} 8. Qd3 {[%clk 1:33:00]}  Ne7 {[%clk 1:30:05]} 9. c5 {[%clk 1:32:59]}  Ng6 {[%clk 1:17:37]} 10. cxd6 {[%clk 1:33:12]}  Qxd6 {[%clk 1:17:20]} 11. Qxd6 {[%clk 1:32:26]}  Bxd6 {[%clk 1:17:44]} 12. O-O {[%clk 1:32:54]}  a5 {[%clk 1:15:34]} 13. Nc3 {[%clk 1:31:09]}  a4 {[%clk 1:04:26]} 14. Be3 {[%clk 1:31:06]}  Be6 {[%clk 0:56:21]} 15. Rfc1 {[%clk 1:27:01]}  f6 {[%clk 0:48:15]} 16. Nd1 {[%clk 1:25:10]}  Ra6 {[%clk 0:43:02]} 17. Ne1 {[%clk 1:21:33]}  Nf8 {[%clk 0:40:40]} 18. Nd3 {[%clk 1:20:51]}  Nd7 {[%clk 0:40:35]} 19. Bd2 {[%clk 1:08:36]}  Kf7 {[%clk 0:27:34]} 20. Ne3 {[%clk 0:54:29]}  Rb8 {[%clk 0:27:45]} 21. Nc4 {[%clk 0:46:08]}  Be7 {[%clk 0:28:06]} 22. Be3 {[%clk 0:36:48]}  c5 {[%clk 0:19:52]} 23. Kf1 {[%clk 0:28:32]}  Rc8 {[%clk 0:19:08]} 24. Rc3 {[%clk 0:21:44]}  Nb6 {[%clk 0:15:09]} 25. Nxb6 {[%clk 0:08:50]}  Rxb6 {[%clk 0:15:27]} 26. a3 {[%clk 0:08:21]}  Rb5 {[%clk 0:15:06]} 27. Bc1 {[%clk 0:01:01]}  c4 {[%clk 0:14:18]} 28. Ne1 {[%clk 0:01:28]}  Bc5 {[%clk 0:13:45]} 29. Rc2 {[%clk 0:00:46]}  Bd4 {[%clk 0:12:55]} 30. Nf3 {[%clk 0:01:11]}  c3 {[%clk 0:09:18]} 31. bxc3 {[%clk 0:00:39]}  Bxc3 {[%clk 0:09:15]} 32. Rxc3 {[%clk 0:00:38]}  Rxc3 {[%clk 0:09:38]} 33. Bd2 {[%clk 0:00:46]}  Rc4 {[%clk 0:06:09]} 34. Re1 {[%clk 0:00:43]}  Rb2 {[%clk 0:06:00]} 35. Bb4 {[%clk 0:00:32]}  Rcc2 {[%clk 0:06:07]} 36. Kg1 {[%clk 0:00:59]}  Rxf2 {[%clk 0:06:07]} 37. Rc1 {[%clk 0:01:22]}  Rxg2+ {[%clk 0:06:15]} 38. Kh1 {[%clk 0:01:51]}  Rgc2 {[%clk 0:06:30]} 39. Rf1 {[%clk 0:02:01]}  Rf2 {[%clk 0:05:51]} 0-1

[Event "Open"]
[Site "Tallinn, EE"]
[Date "2024.12.16"]
[Round "3.1"]
[White "Volodin, Aleksandr"]
[Black "Kanep, Meelis"]
[Result "1/2-1/2"]
[Board "1"]
[TimeControl "40/5400+30"]
[WhiteFideId "4501950"]
[BlackFideId "4501047"]
[WhiteTitle "GM"]
[BlackTitle "GM"]
[WhiteElo "2466"]
[BlackElo "2377"]
[WhiteTeam "EST"]
[BlackTeam "EST"]
[WhiteClock "0:03:00"]
[BlackClock "0:01:02"]
[Variant "Standard"]

1. d4 {[%clk 1:30:56]}  Nf6 {[%clk 1:30:42]} 2. c4 {[%clk 1:31:19]}  g6 {[%clk 1:30:57]} 3. Nc3 {[%clk 1:28:54]}  Bg7 {[%clk 1:29:59]} 4. Nf3 {[%clk 1:29:17]}  O-O {[%clk 1:29:52]} 5. g3 {[%clk 1:29:32]}  d6 {[%clk 1:29:57]} 6. Bg2 {[%clk 1:29:56]}  c6 {[%clk 1:30:07]} 7. O-O {[%clk 1:30:22]}  Qa5 {[%clk 1:30:16]} 8. Re1 {[%clk 1:24:24]}  e5 {[%clk 1:18:16]} 9. e4 {[%clk 1:19:54]}  Nbd7 {[%clk 1:10:53]} 10. h3 {[%clk 1:04:41]}  exd4 {[%clk 1:05:49]} 11. Nxd4 {[%clk 1:05:06]}  Ne5 {[%clk 1:05:59]} 12. Bf1 {[%clk 1:04:37]}  Qb6 {[%clk 1:06:00]} 13. Nc2 {[%clk 0:46:03]}  a6 {[%clk 0:56:37]} 14. Be3 {[%clk 0:42:46]}  Qc7 {[%clk 0:53:10]} 15. f4 {[%clk 0:41:49]}  Ned7 {[%clk 0:53:10]} 16. Qd2 {[%clk 0:40:50]}  Re8 {[%clk 0:44:40]} 17. Bf2 {[%clk 0:40:38]}  b5 {[%clk 0:44:07]} 18. Rad1 {[%clk 0:40:53]}  Bf8 {[%clk 0:43:29]} 19. Bg2 {[%clk 0:33:25]}  bxc4 {[%clk 0:40:12]} 20. Ne3 {[%clk 0:32:09]}  Nb6 {[%clk 0:32:59]} 21. Qd4 {[%clk 0:32:25]}  Nfd7 {[%clk 0:31:58]} 22. Nxc4 {[%clk 0:31:53]}  Nxc4 {[%clk 0:30:01]} 23. Qxc4 {[%clk 0:32:21]}  Bb7 {[%clk 0:28:44]} 24. Rd2 {[%clk 0:24:42]}  Nb6 {[%clk 0:25:06]} 25. Qb3 {[%clk 0:22:47]}  c5 {[%clk 0:25:01]} 26. Red1 {[%clk 0:22:37]}  Bc6 {[%clk 0:24:07]} 27. Qc2 {[%clk 0:21:38]}  Qb7 {[%clk 0:18:49]} 28. Kh2 {[%clk 0:17:06]}  Nc4 {[%clk 0:17:42]} 29. Re2 {[%clk 0:17:26]}  Nb6 {[%clk 0:16:11]} 30. g4 {[%clk 0:15:37]}  a5 {[%clk 0:08:05]} 31. Bg3 {[%clk 0:15:39]}  a4 {[%clk 0:07:51]} 32. Rf2 {[%clk 0:13:59]}  Rab8 {[%clk 0:07:46]} 33. Qd3 {[%clk 0:11:09]}  Rbd8 {[%clk 0:04:53]} 34. f5 {[%clk 0:09:35]}  Nd7 {[%clk 0:03:05]} 35. Nd5 {[%clk 0:06:31]}  Bxd5 {[%clk 0:03:26]} 36. Qxd5 {[%clk 0:06:29]}  Qxd5 {[%clk 0:03:51]} 37. Rxd5 {[%clk 0:06:47]}  Ne5 {[%clk 0:04:03]} 38. f6 {[%clk 0:04:30]}  Bh6 {[%clk 0:02:24]} 39. Bxe5 {[%clk 0:00:55]}  Rxe5 {[%clk 0:01:45]} 40. Rd3 {[%clk 0:15:35]}  Bg5 {[%clk 0:15:46]} 41. Ra3 {[%clk 0:09:52]}  Re6 {[%clk 0:15:07]} 42. Rxa4 {[%clk 0:10:14]}  Rxf6 {[%clk 0:14:30]} 43. Rxf6 {[%clk 0:10:06]}  Bxf6 {[%clk 0:14:55]} 44. b3 {[%clk 0:10:29]}  Be5+ {[%clk 0:07:50]} 45. Kh1 {[%clk 0:09:18]}  Bd4 {[%clk 0:04:26]} 46. Kh2 {[%clk 0:07:50]}  Re8 {[%clk 0:03:50]} 47. Kg3 {[%clk 0:08:03]}  Kg7 {[%clk 0:03:33]} 48. Kf4 {[%clk 0:07:33]}  h6 {[%clk 0:02:11]} 49. Bf3 {[%clk 0:07:03]}  Re7 {[%clk 0:01:51]} 50. Ra6 {[%clk 0:06:57]}  c4 {[%clk 0:01:20]} 51. bxc4 {[%clk 0:07:16]}  Bc5 {[%clk 0:01:26]} 52. Rc6 {[%clk 0:05:22]}  g5+ {[%clk 0:01:26]} 53. Kg3 {[%clk 0:05:41]}  Kf6 {[%clk 0:01:25]} 54. Ra6 {[%clk 0:04:42]}  Ke5 {[%clk 0:01:24]} 55. Ra8 {[%clk 0:05:08]}  Ra7 {[%clk 0:01:02]} 56. Rxa7 {[%clk 0:03:00]} 1/2-1/2

[Event "Open"]
[Site "Tallinn, EE"]
[Date "2024.12.16"]
[Round "3.1"]
[White "Obolonin, Filipp"]
[Black "Narva, Mai"]
[Result "0-1"]
[Board "2"]
[TimeControl "40/5400+30"]
[WhiteFideId "4505549"]
[BlackFideId "4500512"]
[BlackTitle "IM"]
[WhiteElo "2009"]
[BlackElo "2413"]
[WhiteTeam "EST"]
[BlackTeam "EST"]
[WhiteClock "1:04:39"]
[BlackClock "0:23:49"]
[Variant "Standard"]

1. Nf3 {[%clk 1:30:54]}  Nf6 {[%clk 1:30:45]} 2. d4 {[%clk 1:31:18]}  e6 {[%clk 1:31:03]} 3. c4 {[%clk 1:31:44]}  d5 {[%clk 1:31:18]} 4. g3 {[%clk 1:31:36]}  Bb4+ {[%clk 1:31:34]} 5. Bd2 {[%clk 1:31:50]}  Be7 {[%clk 1:31:53]} 6. Bg2 {[%clk 1:31:07]}  O-O {[%clk 1:32:12]} 7. O-O {[%clk 1:31:26]}  c6 {[%clk 1:32:29]} 8. cxd5 {[%clk 1:27:32]}  exd5 {[%clk 1:32:44]} 9. Bg5 {[%clk 1:27:52]}  h6 {[%clk 1:26:38]} 10. Bxf6 {[%clk 1:27:03]}  Bxf6 {[%clk 1:27:02]} 11. Nc3 {[%clk 1:27:27]}  Bf5 {[%clk 1:24:20]} 12. Rc1 {[%clk 1:27:35]}  Nd7 {[%clk 1:17:07]} 13. e3 {[%clk 1:27:20]}  a5 {[%clk 1:13:32]} 14. Na4 {[%clk 1:27:18]}  Qe7 {[%clk 1:08:16]} 15. Nc5 {[%clk 1:23:57]}  Nxc5 {[%clk 1:06:50]} 16. Rxc5 {[%clk 1:24:21]}  Qc7 {[%clk 1:05:51]} 17. Qa4 {[%clk 1:24:06]}  Be7 {[%clk 1:04:33]} 18. Rcc1 {[%clk 1:24:27]}  Qb6 {[%clk 1:03:36]} 19. Rc3 {[%clk 1:14:45]}  Qxb2 {[%clk 0:53:37]} 20. Qb3 {[%clk 1:10:38]}  Qxb3 {[%clk 0:53:45]} 21. Rxb3 {[%clk 1:10:59]}  Rfb8 {[%clk 0:52:13]} 22. Rc1 {[%clk 1:10:17]}  a4 {[%clk 0:50:42]} 23. Rb6 {[%clk 1:10:03]}  Bd8 {[%clk 0:50:12]} 24. Rb4 {[%clk 1:10:13]}  Kf8 {[%clk 0:38:38]} 25. Bf1 {[%clk 1:10:03]}  f6 {[%clk 0:35:21]} 26. Nh4 {[%clk 1:09:45]}  Bh7 {[%clk 0:34:21]} 27. Bh3 {[%clk 1:09:46]}  Ra6 {[%clk 0:33:06]} 28. Bf5 {[%clk 1:06:45]}  Bxf5 {[%clk 0:30:47]} 29. Nxf5 {[%clk 1:07:10]}  g6 {[%clk 0:29:21]} 30. Nh4 {[%clk 1:07:16]}  Kf7 {[%clk 0:29:42]} 31. Nf3 {[%clk 1:05:36]}  Be7 {[%clk 0:29:10]} 32. Rbb1 {[%clk 1:05:58]}  b5 {[%clk 0:28:56]} 33. Nd2 {[%clk 1:06:09]}  f5 {[%clk 0:25:13]} 34. Kf1 {[%clk 1:05:45]}  b4 {[%clk 0:25:12]} 35. Ke2 {[%clk 1:06:07]}  Rab6 {[%clk 0:24:50]} 36. Rc2 {[%clk 1:05:44]}  g5 {[%clk 0:23:48]} 37. Rbc1 {[%clk 1:03:56]}  Rc8 {[%clk 0:19:54]} 38. Rb1 {[%clk 1:02:34]}  Ke6 {[%clk 0:19:14]} 39. Kd3 {[%clk 1:02:04]}  g4 {[%clk 0:19:12]} 40. Rbb2 {[%clk 1:16:31]}  h5 {[%clk 0:30:11]} 41. Rb1 {[%clk 1:16:22]}  c5 {[%clk 0:28:37]} 42. dxc5 {[%clk 1:16:47]}  Rxc5 {[%clk 0:29:03]} 43. Rbb2 {[%clk 1:14:07]}  Rxc2 {[%clk 0:28:42]} 44. Rxc2 {[%clk 1:14:31]}  Ra6 {[%clk 0:26:24]} 45. Rc8 {[%clk 1:06:28]}  b3 {[%clk 0:23:55]} 46. Rc1 {[%clk 1:04:39]}  Bf6 {[%clk 0:23:49]} 0-1

[Event "Open"]
[Site "Tallinn, EE"]
[Date "2024.12.18"]
[Round "4.1"]
[White "Narva, Mai"]
[Black "Volodin, Aleksandr"]
[Result "1/2-1/2"]
[Board "1"]
[TimeControl "40/5400+30"]
[WhiteFideId "4500512"]
[BlackFideId "4501950"]
[WhiteTitle "IM"]
[BlackTitle "GM"]
[WhiteElo "2413"]
[BlackElo "2466"]
[WhiteTeam "EST"]
[BlackTeam "EST"]
[WhiteClock "0:23:30"]
[BlackClock "0:16:06"]
[Variant "Standard"]

1. e4 {[%clk 1:30:56]}  c5 {[%clk 1:30:55]} 2. Nf3 {[%clk 1:31:21]}  d6 {[%clk 1:31:20]} 3. d4 {[%clk 1:31:45]}  cxd4 {[%clk 1:31:47]} 4. Nxd4 {[%clk 1:32:09]}  Nf6 {[%clk 1:32:10]} 5. Nc3 {[%clk 1:32:34]}  a6 {[%clk 1:32:37]} 6. h4 {[%clk 1:32:51]}  e5 {[%clk 1:28:58]} 7. Nb3 {[%clk 1:33:14]}  Be6 {[%clk 1:28:28]} 8. f4 {[%clk 1:33:23]}  exf4 {[%clk 1:27:34]} 9. Bxf4 {[%clk 1:33:44]}  Nc6 {[%clk 1:25:49]} 10. Qd2 {[%clk 1:33:50]}  d5 {[%clk 1:15:08]} 11. O-O-O {[%clk 1:34:03]}  Bb4 {[%clk 1:10:20]} 12. Bg5 {[%clk 1:34:09]}  dxe4 {[%clk 0:52:26]} 13. Qf2 {[%clk 1:33:16]}  Qe7 {[%clk 0:50:54]} 14. Bxf6 {[%clk 1:33:25]}  Qxf6 {[%clk 0:47:05]} 15. Qxf6 {[%clk 1:33:44]}  gxf6 {[%clk 0:47:31]} 16. Nxe4 {[%clk 1:34:06]}  Ke7 {[%clk 0:45:40]} 17. a3 {[%clk 1:33:29]}  f5 {[%clk 0:34:05]} 18. Nec5 {[%clk 1:29:02]}  Bxc5 {[%clk 0:34:31]} 19. Nxc5 {[%clk 1:29:26]}  Ra7 {[%clk 0:33:01]} 20. Rh3 {[%clk 1:18:18]}  Rd8 {[%clk 0:33:21]} 21. Rxd8 {[%clk 1:11:37]}  Nxd8 {[%clk 0:33:46]} 22. Rg3 {[%clk 1:10:07]}  Kf6 {[%clk 0:30:46]} 23. Rc3 {[%clk 1:09:01]}  Ra8 {[%clk 0:30:18]} 24. b4 {[%clk 1:04:37]}  Ke7 {[%clk 0:22:42]} 25. Be2 {[%clk 0:51:02]}  a5 {[%clk 0:20:57]} 26. Nxb7 {[%clk 0:48:13]}  axb4 {[%clk 0:19:44]} 27. Rc7+ {[%clk 0:44:59]}  Kf6 {[%clk 0:18:09]} 28. axb4 {[%clk 0:45:06]}  Nxb7 {[%clk 0:14:11]} 29. Rxb7 {[%clk 0:45:30]}  Bd5 {[%clk 0:14:39]} 30. Rb6+ {[%clk 0:44:56]}  Ke7 {[%clk 0:15:08]} 31. Rb5 {[%clk 0:40:43]}  Be4 {[%clk 0:14:30]} 32. Kd2 {[%clk 0:33:08]}  Rd8+ {[%clk 0:12:58]} 33. Bd3 {[%clk 0:33:01]}  Ke6 {[%clk 0:12:40]} 34. Ke3 {[%clk 0:32:48]}  Bxd3 {[%clk 0:12:46]} 35. cxd3 {[%clk 0:33:14]}  Rg8 {[%clk 0:13:11]} 36. Rb6+ {[%clk 0:32:08]}  Ke7 {[%clk 0:11:27]} 37. b5 {[%clk 0:19:01]}  Rxg2 {[%clk 0:11:17]} 38. Rc6 {[%clk 0:17:46]}  Rh2 {[%clk 0:05:59]} 39. b6 {[%clk 0:10:40]}  Rxh4 {[%clk 0:06:25]} 40. Rc4 {[%clk 0:25:21]}  Rxc4 {[%clk 0:19:29]} 41. dxc4 {[%clk 0:25:47]}  Kd7 {[%clk 0:19:55]} 42. Kf4 {[%clk 0:25:04]}  Kc6 {[%clk 0:17:29]} 43. c5 {[%clk 0:25:28]}  h5 {[%clk 0:17:56]} 44. Kg5 {[%clk 0:21:29]}  f4 {[%clk 0:17:47]} 45. Kxf4 {[%clk 0:21:54]}  f6 {[%clk 0:18:04]} 46. Kf5 {[%clk 0:22:14]}  Kb7 {[%clk 0:18:18]} 47. Ke6 {[%clk 0:21:34]}  h4 {[%clk 0:18:42]} 48. Kd6 {[%clk 0:21:18]}  h3 {[%clk 0:18:44]} 49. c6+ {[%clk 0:21:43]}  Kxb6 {[%clk 0:18:46]} 50. c7 {[%clk 0:22:06]}  h2 {[%clk 0:19:13]} 51. c8=Q {[%clk 0:22:30]}  h1=Q {[%clk 0:19:34]} 52. Qc5+ {[%clk 0:22:48]}  Ka6 {[%clk 0:17:11]} 53. Qc4+ {[%clk 0:23:08]}  Ka5 {[%clk 0:16:06]} 54. Qc3+ {[%clk 0:23:30]} 1/2-1/2

[Event "Open"]
[Site "Tallinn, EE"]
[Date "2024.12.19"]
[Round "4.2"]
[White "Volodin, Aleksandr"]
[Black "Narva, Mai"]
[Result "1/2-1/2"]
[Board "1"]
[TimeControl "40/5400+30"]
[WhiteFideId "4501950"]
[BlackFideId "4500512"]
[WhiteTitle "GM"]
[BlackTitle "IM"]
[WhiteElo "2466"]
[BlackElo "2413"]
[WhiteTeam "EST"]
[BlackTeam "EST"]
[WhiteClock "0:11:56"]
[BlackClock "0:16:03"]
[Variant "Standard"]

1. d4 {[%clk 1:30:52]}  Nf6 {[%clk 1:30:51]} 2. c4 {[%clk 1:31:17]}  g6 {[%clk 1:31:10]} 3. Nf3 {[%clk 1:31:37]}  Bg7 {[%clk 1:31:25]} 4. g3 {[%clk 1:31:57]}  O-O {[%clk 1:31:34]} 5. Bg2 {[%clk 1:32:24]}  c6 {[%clk 1:31:38]} 6. Nc3 {[%clk 1:28:26]}  d5 {[%clk 1:31:55]} 7. Qb3 {[%clk 1:27:54]}  dxc4 {[%clk 1:17:56]} 8. Qxc4 {[%clk 1:27:50]}  Bf5 {[%clk 1:17:49]} 9. O-O {[%clk 1:23:38]}  Nbd7 {[%clk 1:17:09]} 10. Bf4 {[%clk 1:15:22]}  h6 {[%clk 1:04:13]} 11. Rfd1 {[%clk 0:57:54]}  Bc2 {[%clk 0:54:07]} 12. Rdc1 {[%clk 0:56:55]}  Nb6 {[%clk 0:54:18]} 13. Qc5 {[%clk 0:56:10]}  Bf5 {[%clk 0:49:27]} 14. Qa3 {[%clk 0:33:37]}  Ne4 {[%clk 0:31:34]} 15. h4 {[%clk 0:22:54]}  Re8 {[%clk 0:30:56]} 16. Qb3 {[%clk 0:21:42]}  Rc8 {[%clk 0:17:24]} 17. Rd1 {[%clk 0:20:13]}  Be6 {[%clk 0:16:13]} 18. Qc2 {[%clk 0:20:20]}  Nxc3 {[%clk 0:16:24]} 19. bxc3 {[%clk 0:20:34]}  Nc4 {[%clk 0:15:52]} 20. Qc1 {[%clk 0:18:38]}  Kh7 {[%clk 0:15:22]} 21. Rb1 {[%clk 0:17:40]}  b5 {[%clk 0:12:25]} 22. Nd2 {[%clk 0:10:18]}  Nxd2 {[%clk 0:12:16]} 23. Qxd2 {[%clk 0:10:02]}  Qa5 {[%clk 0:11:36]} 24. Ra1 {[%clk 0:08:40]}  Bc4 {[%clk 0:11:15]} 25. Qc2 {[%clk 0:08:02]}  e5 {[%clk 0:10:16]} 26. dxe5 {[%clk 0:07:25]}  Bxe5 {[%clk 0:10:40]} 27. Bxe5 {[%clk 0:07:49]}  Rxe5 {[%clk 0:11:05]} 28. e3 {[%clk 0:08:09]}  Be6 {[%clk 0:09:57]} 29. a4 {[%clk 0:08:17]}  Qc7 {[%clk 0:09:15]} 30. Qb2 {[%clk 0:07:48]}  a5 {[%clk 0:08:16]} 31. Qa3 {[%clk 0:08:10]}  bxa4 {[%clk 0:07:19]} 32. Qxa4 {[%clk 0:08:32]}  Rc5 {[%clk 0:07:24]} 33. Qd4 {[%clk 0:08:32]}  Qe7 {[%clk 0:06:42]} 34. Qa4 {[%clk 0:03:55]}  Rb8 {[%clk 0:02:42]} 35. Rd4 {[%clk 0:04:23]}  Bb3 {[%clk 0:02:02]} 36. Qa3 {[%clk 0:04:53]}  Qe5 {[%clk 0:02:21]} 37. Rc1 {[%clk 0:03:30]}  a4 {[%clk 0:01:44]} 38. Bf3 {[%clk 0:03:24]}  h5 {[%clk 0:01:09]} 39. Bd1 {[%clk 0:03:48]}  Rd5 {[%clk 0:00:44]} 40. Bf3 {[%clk 0:17:04]}  Rc5 {[%clk 0:16:03]} 41. c4 {[%clk 0:11:56]} 1/2-1/2